bitfinex/quotes_BTCUSD_20251114
["timestamp","ask_amount","ask_price","bid_price","bid_amount"]
[1763126606353,0.04862,94948.0,94907.0,0.21073188]
[1763126606556,0.04862,94948.0,94899.0,0.56065857]
[1763126606557,0.01,94910.0,94899.0,0.56065857]
[1763126606710,0.02999998,94910.0,94908.0,0.21073039]
[1763126607123,0.01,94910.0,94908.0,0.21073039]
[1763126607322,0.01999998,94920.0,94908.0,0.53373039]
[1763126607524,0.02999997,94920.0,94908.0,0.53373039]
[1763126607721,0.01999998,94920.0,94908.0,0.53373039]
[1763126608059,0.01,94960.0,94930.0,0.01053407]
[1763126608204,0.01,94940.0,94939.0,0.21066158]
[1763126608415,0.01999998,94940.0,94930.0,0.01053407]
[1763126608625,0.01999998,94940.0,94930.0,0.36044449]
[1763126608849,0.01999999,94950.0,94946.0,0.21064575]
[1763126609055,0.01,94950.0,94948.0,0.21063973]
[1763126609272,0.0001369,94960.0,94959.0,0.21061721]
[1763126609497,0.03013688,94960.0,94958.0,0.21061739]
[1763126609707,0.0001369,94960.0,94951.0,0.21063495]
[1763126609911,0.03013688,94960.0,94955.0,0.21062416]
[1763126610126,0.03013688,94960.0,94940.0,0.34991042]
[1763126610327,0.04013687,94960.0,94941.0,0.53365714]
[1763126610541,0.04013687,94960.0,94941.0,0.323]
[1763126610542,0.03013687,94960.0,94941.0,0.323]
[1763126610749,0.03013688,94960.0,94950.0,0.34991042]
[1763126610962,0.02013688,94960.0,94950.0,0.34991042]
[1763126611154,0.0001369,94960.0,94956.0,0.21062296]
[1763126611356,0.0001369,94960.0,94950.0,0.34991042]
[1763126611357,0.0001369,94960.0,94950.0,0.69982084]
[1763126611565,0.0011369,94960.0,94959.0,0.21061721]
[1763126611768,0.0021369,94960.0,94959.0,0.21061721]
[1763126612000,2.47411146,95000.0,94959.0,0.21061721]
[1763126612001,2.47411146,95000.0,94959.0,0.0535309]
[1763126612002,0.00999999,94980.0,94959.0,0.0535309]
[1763126612200,0.03045602,94980.0,94970.0,0.34991042]
[1763126612402,0.04045602,94980.0,94970.0,0.34991042]
[1763126612601,2.47411146,95000.0,94970.0,0.34991042]
[1763126612602,0.01999998,94990.0,94978.0,0.21057321]
[1763126612816,0.00013673,94990.0,94986.0,0.21055612]
[1763126613022,0.02999998,94980.0,94970.0,0.34991042]
[1763126613242,0.03999997,94980.0,94970.0,0.56050103]
[1763126613448,0.01999999,94980.0,94978.0,0.21057329]
[1763126613662,0.02999998,94980.0,94970.0,0.34991042]
[1763126613866,0.03999997,94980.0,94970.0,0.34991042]
[1763126614067,0.01999998,94980.0,94970.0,0.34991042]
[1763126614269,0.01099999,94990.0,94972.0,0.323]
[1763126614475,0.01099999,94990.0,94982.0,0.323]
[1763126614476,0.00999999,94990.0,94982.0,0.323]
[1763126614684,0.01999998,94990.0,94980.0,0.34991042]
[1763126614887,2.51411143,95000.0,94980.0,0.34991042]
[1763126615110,2.51411143,95000.0,94990.0,0.34991042]
[1763126615307,2.48411146,95000.0,94997.0,0.21053112]
[1763126615509,2.48411146,95000.0,94999.0,0.21052853]
[1763126615762,2.47411146,95000.0,94999.0,0.21052853]
[1763126615946,2.48411145,95000.0,94998.0,0.21052871]
[1763126616157,2.49611144,95000.0,94990.0,0.34991042]
[1763126616357,2.50611144,95000.0,94997.0,0.21053096]
[1763126616556,2.50611144,95000.0,94990.0,0.34991042]
[1763126617163,2.50711144,95000.0,94990.0,0.34991042]
[1763126617370,2.47511146,95000.0,94998.0,0.21052865]
[1763126617569,1.08323725,95000.0,94999.0,0.36641874]
[1763126617809,1.05160304,95000.0,94999.0,0.36641874]
[1763126618000,0.28063921,95000.0,94999.0,0.36641874]
[1763126618214,0.20658754,95000.0,94999.0,2.43924836]
[1763126618416,0.17497258,95000.0,94999.0,2.43924836]
[1763126618623,0.14435762,95000.0,94999.0,2.43924836]
[1763126618813,0.11274266,95000.0,94999.0,2.43924836]
[1763126619112,0.0801277,95000.0,94999.0,2.36124836]
[1763126619332,0.04751274,95000.0,94999.0,0.36124836]
[1763126619547,0.01589778,95000.0,94999.0,0.36124836]
[1763126619756,0.01589778,95000.0,94999.0,0.31782962]
[1763126619957,0.01589778,95000.0,94999.0,0.245]
[1763126620500,0.01589778,95000.0,94999.0,0.28841874]
[1763126620726,0.01589778,95000.0,94999.0,0.29041874]
[1763126621134,0.01589778,95000.0,94990.0,0.77876704]
[1763126621135,0.01589778,95000.0,94991.0,0.10479654]
[1763126621344,0.01589778,95000.0,94999.0,0.002]
[1763126621785,0.05931652,95000.0,94999.0,0.002]
[1763126622104,0.01,94980.0,94974.0,4e-05]
[1763126622285,0.04341874,94979.0,94974.0,4e-05]
[1763126622660,0.323,94994.0,94974.0,4e-05]
[1763126623007,0.32313668,94994.0,94980.0,0.34991042]
[1763126623455,0.04341874,94993.0,94981.0,4e-05]
[1763126623643,0.04341874,94993.0,94982.0,0.21056489]
[1763126623866,0.32313668,94994.0,94982.0,0.21056621]
[1763126624071,0.323,94992.0,94983.0,4e-05]
[1763126624287,0.00999999,94990.0,94960.0,0.01053074]
[1763126624490,0.04341874,94979.0,94971.0,4e-05]
[1763126624926,0.04341874,94979.0,94972.0,4e-05]
[1763126625147,0.31641874,94977.0,94972.0,4e-05]
[1763126626298,0.31641874,94977.0,94950.0,0.01053185]
[1763126626299,0.31641874,94977.0,94962.0,0.14264924]
[1763126626516,0.01999998,94970.0,94950.0,0.58094918]
[1763126626720,0.01999998,94970.0,94962.0,0.21060947]
[1763126626926,0.01999998,94970.0,94960.0,0.57041733]
[1763126626927,0.01999998,94970.0,94963.0,0.21060834]
[1763126627141,0.01999998,94970.0,94960.0,0.57039388]
[1763126627344,0.01999998,94970.0,94961.0,0.21060612]
[1763126627565,0.01999998,94970.0,94965.0,0.21060282]
[1763126627770,0.31641874,94977.0,94966.0,0.02106016]
[1763126627979,0.00999999,94990.0,94982.0,0.21056432]
[1763126628196,0.01999998,94980.0,94962.0,0.001]
[1763126628408,0.323,94977.0,94950.0,0.84682257]
[1763126628615,0.323,94977.0,94955.0,0.21062593]
[1763126628848,0.323,94977.0,94965.0,0.001]
[1763126629068,0.04577965,94976.0,94965.0,0.001]
[1763126629839,0.323,94974.0,94965.0,0.001]
[1763126630041,0.01,94970.0,94965.0,0.001]
[1763126630452,0.01,94970.0,94940.0,0.01053296]
[1763126630453,0.00999999,94960.0,94940.0,0.01053296]
[1763126630671,0.42779654,94959.0,94940.0,0.01053296]
[1763126631079,0.42779654,94959.0,94956.0,0.2106224]
[1763126631279,0.323,94959.0,94957.0,0.2106203]
[1763126631638,0.86629069,94970.0,94957.0,0.2106203]
[1763126631639,0.001,94960.0,94957.0,0.00045605]
[1763126631788,0.001,94960.0,94959.0,0.21061721]
[1763126631990,0.001,94960.0,94957.0,0.21107668]
[1763126631991,0.001,94960.0,94957.0,0.00045605]
[1763126632189,0.323,94969.0,94961.0,0.21061123]
[1763126632392,0.323,94969.0,94957.0,0.00045605]
[1763126632592,0.02999997,94970.0,94967.0,0.21059845]
[1763126632892,0.02999997,94970.0,94966.0,0.21060039]
[1763126632893,0.323,94977.0,94968.0,0.21059633]
[1763126633092,0.01999998,94970.0,94959.0,0.21061566]
[1763126633297,0.01999998,94970.0,94957.0,0.00045605]
[1763126633478,0.02999997,94970.0,94957.0,0.00045605]
[1763126633676,0.02999997,94970.0,94961.0,0.2106123]
[1763126633881,0.00999999,94970.0,94966.0,0.21060083]
[1763126634075,0.323,94977.0,94968.0,0.21059639]
[1763126634284,0.01946086,94976.0,94966.0,0.0001369]
[1763126634497,0.01946086,94975.0,94966.0,0.0001369]
[1763126634723,0.01,94970.0,94966.0,0.0001369]
[1763126635083,0.01946086,94969.0,94966.0,0.0001369]
[1763126635287,0.04341874,94968.0,94966.0,0.0001369]
[1763126635487,0.39216756,94967.0,94966.0,0.0001369]
[1763126635710,0.06916756,94967.0,94966.0,0.0001369]
[1763126635929,0.07890482,94967.0,94966.0,0.0001369]
[1763126637208,0.07990482,94967.0,94966.0,0.0001369]
[1763126637422,0.07890482,94967.0,94966.0,0.0001369]
[1763126638040,0.08090482,94967.0,94966.0,0.0001369]
[1763126638276,0.14265482,94967.0,94966.0,0.0001369]
[1763126638512,0.14065482,94967.0,94966.0,0.0001369]
[1763126638681,0.14465482,94967.0,94966.0,0.0001369]
[1763126638883,0.08290482,94967.0,94966.0,0.0001369]
[1763126639108,0.08090482,94967.0,94966.0,0.0001369]
[1763126639314,0.08290482,94967.0,94966.0,0.0001369]
[1763126640257,0.08090482,94967.0,94966.0,0.0001369]
[1763126640449,0.08090482,94967.0,94902.0,0.2107423]
[1763126640450,0.00999999,94920.0,94902.0,0.2107423]
[1763126640655,0.323,94916.0,94913.0,0.00014]
[1763126640885,0.03999997,94900.0,94876.0,0.00014]
[1763126641097,0.03999997,94900.0,94857.0,47.69053784]
[1763126641098,0.03999997,94900.0,94889.0,0.00892424]
[1763126641311,0.02999997,94900.0,94889.0,0.23184777]
[1763126641515,0.01949506,94899.0,94889.0,0.21077258]
[1763126641721,0.01949506,94898.0,94888.0,59.6768443]
[1763126641953,0.83629072,94920.0,94888.0,59.6768443]
[1763126641954,0.01900506,94897.0,94896.0,0.21075561]
[1763126642151,0.11388,94949.0,94910.0,0.01053629]
[1763126642364,0.00973805,94946.0,94920.0,0.01053518]
[1763126642576,0.00999999,94940.0,94923.0,0.21069513]
[1763126642779,0.02999997,94930.0,94914.0,0.21071621]
[1763126642987,0.00999999,94920.0,94900.0,0.0105374]
[1763126643197,0.01999999,94920.0,94890.0,0.01053851]
[1763126643401,0.00999999,94910.0,94890.0,0.01053851]
[1763126643618,0.00999999,94910.0,94890.0,0.01067495]
[1763126643831,0.00999999,94910.0,94891.0,0.06468025]
[1763126644029,0.00999999,94910.0,94892.0,0.21076592]
[1763126644252,0.323,94899.0,94890.0,0.00013644]
[1763126644665,0.04884,94898.0,94890.0,0.00113644]
[1763126645286,0.04884,94898.0,94890.0,0.00013644]
[1763126645287,0.04341874,94897.0,94890.0,0.00013644]
[1763126645490,0.36641874,94895.0,94887.0,0.05]
[1763126645696,0.36641874,94895.0,94888.0,59.57770786]
[1763126646506,0.36641874,94895.0,94888.0,59.57270786]
[1763126646843,0.36841874,94895.0,94888.0,59.57270786]
[1763126647068,0.04341874,94889.0,94888.0,58.35502503]
[1763126647303,0.00969397,94889.0,94888.0,57.54392862]
[1763126647925,0.02622271,94889.0,94888.0,57.54392862]
[1763126648133,0.04341874,94892.0,94888.0,57.54392862]
[1763126648619,0.02999997,94900.0,94889.0,0.02107725]
[1763126648830,0.02999997,94910.0,94899.0,0.21074858]
[1763126649036,0.04578,94890.0,94888.0,57.54392862]
[1763126649241,0.05578,94890.0,94888.0,57.52592862]
[1763126650258,0.03999997,94900.0,94889.0,0.02107725]
[1763126650466,0.02999997,94900.0,94888.0,57.52592862]
[1763126650669,0.03999997,94900.0,94888.0,57.52592862]
[1763126650877,0.03999997,94900.0,94889.0,0.01981585]
[1763126651082,0.03999997,94900.0,94889.0,0.23058768]
[1763126651292,0.00999999,94900.0,94888.0,57.52592862]
[1763126651498,0.001,94892.0,94888.0,57.52592862]
[1763126651930,0.02999997,94900.0,94889.0,0.21077258]
[1763126652140,0.02999997,94900.0,94888.0,57.52592862]
[1763126652349,0.02999997,94900.0,94889.0,0.02107725]
[1763126652562,0.02999997,94900.0,94889.0,0.21077042]
[1763126652770,0.00999999,94900.0,94891.0,0.21076655]
[1763126652979,0.02999997,94900.0,94892.0,0.02107659]
[1763126653177,0.02999997,94900.0,94888.0,57.52592862]
[1763126654222,0.02999997,94900.0,94891.0,0.21076624]
[1763126654440,0.03999997,94900.0,94888.0,57.52592862]
[1763126654649,0.01943342,94899.0,94888.0,57.52592862]
[1763126654850,0.01,94890.0,94888.0,57.52592862]
[1763126656318,0.01,94890.0,94888.0,57.44692862]
[1763126656728,0.01999998,94870.0,94857.0,30.82153984]
[1763126656931,0.01999999,94870.0,94857.0,30.82153984]
[1763126657301,0.03999997,94870.0,94857.0,30.82153984]
[1763126657709,0.03999997,94870.0,94862.0,0.210831]
[1763126658079,0.02999997,94870.0,94863.0,0.02108303]
[1763126658281,0.00999999,94880.0,94872.0,0.0655]
[1763126658398,0.03099997,94890.0,94873.0,0.01981724]
[1763126658606,0.01,94895.0,94874.0,0.02108059]
[1763126658607,0.01945096,94889.0,94874.0,0.02108059]
[1763126658803,0.01999998,94890.0,94884.0,0.21078212]
[1763126659001,0.01999998,94890.0,94858.0,0.09873]
[1763126659002,0.00999999,94880.0,94858.0,0.09873]
[1763126659303,0.00999999,94870.0,94862.0,0.02153975]
[1763126659512,0.02999997,94870.0,94862.0,0.0004565]
[1763126660280,0.00999999,94870.0,94867.0,0.21082017]
[1763126660514,0.03999997,94880.0,94868.0,0.02108192]
[1763126660762,0.01946276,94879.0,94868.0,0.02108192]
[1763126661028,0.01946276,94878.0,94868.0,0.02108192]
[1763126661233,0.01946276,94877.0,94869.0,0.21081625]
[1763126661448,0.01946276,94876.0,94870.0,0.02108147]
[1763126661639,0.01946276,94875.0,94867.0,0.001]
[1763126661843,0.02999997,94880.0,94867.0,0.001]
[1763126661980,0.0194649,94879.0,94857.0,30.81299634]
[1763126662179,0.0194649,94878.0,94868.0,0.21081764]
[1763126662403,0.0194649,94878.0,94857.0,30.91666572]
[1763126662404,0.0194649,94878.0,94869.0,0.001]
[1763126662616,0.01,94870.0,94869.0,0.001]
[1763126662798,0.0752449,94870.0,94869.0,0.001]
[1763126662997,0.0294649,94870.0,94869.0,0.001]
[1763126663242,0.0194649,94870.0,94869.0,0.001]
[1763126663414,0.323,94877.0,94871.0,0.21081257]
[1763126663622,0.01949611,94876.0,94872.0,0.02108103]
[1763126663989,0.01949611,94875.0,94864.0,0.21082813]
[1763126664194,0.01949611,94874.0,94865.0,0.02108259]
[1763126664401,0.01951519,94873.0,94866.0,0.21082368]
[1763126664571,0.00045538,94879.0,94857.0,31.02383847]
[1763126664572,0.01999998,94870.0,94857.0,31.02383847]
[1763126664722,0.01951519,94869.0,94857.0,30.81299634]
[1763126665132,0.01951519,94869.0,94867.0,0.21082051]
[1763126665351,0.01951519,94869.0,94868.0,0.02108205]
[1763126665564,0.00045538,94879.0,94877.0,0.21079924]
[1763126665790,0.0195365,94878.0,94866.0,0.001]
[1763126666035,0.0195365,94877.0,94866.0,0.001]
[1763126666208,0.0195365,94876.0,94866.0,0.001]
[1763126666420,0.0195365,94875.0,94866.0,0.001]
[1763126666635,0.0195365,94874.0,94866.0,0.001]
[1763126666850,0.06057,94867.0,94866.0,0.001]
[1763126667080,0.0801065,94867.0,94866.0,0.001]
[1763126667305,0.0801065,94867.0,94850.0,0.0004]
[1763126667306,0.01,94860.0,94850.0,0.0004]
[1763126667536,0.02930947,94859.0,94850.0,0.0004]
[1763126667754,0.02930991,94858.0,94850.0,0.0004]
[1763126668176,0.03916991,94858.0,94850.0,0.0004]
[1763126668397,0.0753869,94858.0,94850.0,0.0004]
[1763126668838,0.03916991,94858.0,94850.0,0.0004]
[1763126669692,0.52054865,94858.0,94850.0,0.0004]
[1763126670319,0.52154865,94858.0,94850.0,0.0004]
[1763126670528,0.36416991,94858.0,94850.0,0.0004]
[1763126670742,0.0215365,94858.0,94857.0,31.02384003]
[1763126670952,0.0195365,94858.0,94857.0,30.91666572]
[1763126671184,0.0195365,94858.0,94857.0,30.81299634]
[1763126671185,0.002,94858.0,94857.0,30.81299634]
[1763126671399,0.0215365,94858.0,94857.0,30.81299634]
[1763126671805,0.0195365,94858.0,94857.0,30.81299634]
[1763126672147,0.0195365,94858.0,94857.0,30.81399634]
[1763126672349,0.0195365,94859.0,94857.0,30.81399634]
[1763126672585,0.00045538,94879.0,94858.0,0.09732]
[1763126672800,0.01956461,94877.0,94876.0,0.15779977]
[1763126672973,0.01956461,94877.0,94876.0,0.21080146]
[1763126673817,0.00045538,94879.0,94877.0,0.09732]
[1763126674127,0.00045538,94879.0,94877.0,0.24553528]
[1763126674335,0.00045538,94879.0,94877.0,0.55901032]
[1763126674684,0.00045538,94879.0,94877.0,0.53191809]
[1763126675302,0.00045538,94879.0,94877.0,0.53291809]
[1763126676338,0.00045538,94879.0,94877.0,0.63771463]
[1763126676845,0.00045538,94879.0,94877.0,2.63771463]
[1763126677288,0.00045538,94879.0,94877.0,2.63671463]
[1763126677512,0.01250069,94900.0,94899.0,0.21075037]
[1763126677757,0.01250069,94900.0,94890.0,0.83629072]
[1763126677975,0.01250069,94900.0,94880.0,0.83629072]
[1763126678193,0.01250069,94900.0,94878.0,0.03338]
[1763126678194,0.04802,94899.0,94878.0,0.03338]
[1763126678403,0.01955364,94898.0,94878.0,0.03338]
[1763126678607,0.01955364,94897.0,94888.0,0.21077426]
[1763126678816,0.02250068,94900.0,94887.0,0.21077702]
[1763126679018,0.01955198,94899.0,94885.0,0.21078099]
[1763126679229,0.01955198,94898.0,94879.0,0.21079413]
[1763126679448,0.01955198,94897.0,94887.0,0.21077526]
[1763126679648,0.01250069,94900.0,94880.0,0.88178814]
[1763126679858,0.01955568,94899.0,94880.0,0.04549742]
[1763126680069,0.01955568,94898.0,94880.0,0.13179202]
[1763126680271,0.01955568,94897.0,94880.0,0.001]
[1763126680482,0.02250068,94900.0,94880.0,0.001]
[1763126680693,0.01955132,94899.0,94880.0,0.001]
[1763126680907,0.01955132,94898.0,94886.0,0.21077804]
[1763126681110,0.02250068,94900.0,94886.0,0.04215664]
[1763126681326,0.0195499,94899.0,94890.0,0.21076909]
[1763126681538,0.02250068,94900.0,94878.0,0.03338]
[1763126681752,0.01954565,94899.0,94897.0,0.21075481]
[1763126681965,0.01250069,94900.0,94898.0,0.04215173]
[1763126682173,0.01250069,94900.0,94883.0,0.09732]
[1763126682378,0.01250069,94900.0,94887.0,0.21077521]
[1763126682624,0.01250069,94900.0,94894.0,0.21076131]
[1763126682828,0.01150069,94900.0,94899.0,0.0664]
[1763126683035,0.09166,94957.0,94910.0,0.01053629]
[1763126683251,0.02933037,94950.0,94934.0,0.2106722]
[1763126683476,0.01955358,94949.0,94940.0,0.83629072]
[1763126683710,0.00013667,94951.0,94931.0,0.02763]
[1763126683711,0.01955358,94948.0,94931.0,0.02763]
[1763126683919,0.00013667,94951.0,94931.0,0.02763]
[1763126684130,0.00013667,94951.0,94932.0,0.08863]
[1763126684341,0.00013667,94951.0,94949.0,0.21063763]
[1763126684552,0.00013667,94951.0,94932.0,0.08863]
[1763126684764,0.00013667,94951.0,94949.0,0.21063779]
[1763126685164,0.00013667,94951.0,94934.0,0.001]
[1763126685175,0.00999999,94940.0,94919.0,0.21070503]
[1763126685392,0.00999999,94940.0,94932.0,0.001]
[1763126685603,0.00999999,94940.0,94911.0,0.11605896]
[1763126685815,0.00999999,94940.0,94912.0,0.01265953]
[1763126686020,0.00999999,94940.0,94913.0,0.21071929]
[1763126686254,0.02999997,94950.0,94920.0,0.01053518]
[1763126686655,0.02999997,94950.0,94938.0,0.21066211]
[1763126686865,0.02999997,94950.0,94949.0,0.001]
[1763126687070,0.04815667,94951.0,94949.0,0.002]
[1763126687280,0.04815667,94951.0,94939.0,0.21065986]
[1763126687281,0.00999999,94950.0,94941.0,0.02783]
[1763126687545,0.00013667,94951.0,94950.0,0.21063717]
[1763126687771,0.00013667,94951.0,94950.0,0.31916496]
[1763126687982,0.00013667,94951.0,94950.0,0.0664]
[1763126688195,0.00013667,94951.0,94942.0,0.08843]
[1763126688408,0.00013667,94951.0,94949.0,0.21063796]
[1763126688814,0.00013667,94951.0,94950.0,0.002]
[1763126689888,0.00013667,94951.0,94950.0,0.36841874]
[1763126690099,0.00013667,94951.0,94950.0,0.47108812]
[1763126690529,0.0002,94990.0,94989.0,0.21055069]
[1763126690743,0.00065642,94990.0,94989.0,0.21055069]
[1763126690955,0.00065642,94990.0,94988.0,0.03338]
[1763126691153,0.00065642,94990.0,94989.0,0.21055069]
[1763126691404,0.00065642,94990.0,94988.0,0.03338]
[1763126691635,0.00065642,94990.0,94937.0,1.05332333]
[1763126691636,0.00065642,94990.0,94979.0,0.03338]
[1763126691839,0.03065639,94990.0,94970.0,0.03338]
[1763126692060,0.01999998,94980.0,94970.0,0.03338]
[1763126692279,0.03065639,94990.0,94970.0,0.03338]
[1763126692485,0.01999998,94980.0,94970.0,0.03338]
[1763126692929,0.01999998,94980.0,94971.0,0.21058844]
[1763126693356,0.01065641,94990.0,94989.0,0.001]
[1763126693969,0.01999998,94980.0,94972.0,0.21058734]
[1763126694190,0.03065639,94990.0,94971.0,0.001]
[1763126694386,0.03065639,94990.0,94971.0,0.11492842]
[1763126694590,0.03065639,94990.0,94977.0,0.17857716]
[1763126694792,0.03065639,94990.0,94981.0,0.21056716]
[1763126694793,0.01065641,94990.0,94981.0,0.21056716]
[1763126694999,0.00065642,94990.0,94987.0,0.21055341]
[1763126695224,0.00065642,94990.0,94988.0,0.21055093]
[1763126695634,0.01065641,94990.0,94972.0,0.08943]
[1763126695852,0.01065641,94990.0,94973.0,0.0275223]
[1763126696078,0.03065639,94990.0,94972.0,0.001]
[1763126696280,0.03065639,94990.0,94974.0,0.21058214]
[1763126696496,0.03065639,94990.0,94979.0,0.21057088]
[1763126696711,0.03065639,94990.0,94983.0,0.21056372]
[1763126696917,0.01065641,94990.0,94985.0,0.21055808]
[1763126697131,0.00065642,94990.0,94971.0,0.08843]
[1763126697336,0.00065642,94990.0,94972.0,0.06468025]
[1763126697550,0.61090036,94990.0,94974.0,0.001]
[1763126697774,0.323,94989.0,94979.0,0.001]
[1763126697986,0.01999998,94980.0,94970.0,0.03338]
[1763126698395,0.01999998,94980.0,94971.0,0.002]
[1763126698638,0.01999998,94980.0,94971.0,0.001]
[1763126698850,0.01999998,94980.0,94932.0,0.02783]
[1763126698851,0.323,94971.0,94932.0,0.02783]
[1763126699070,0.01999998,94950.0,94932.0,0.02783]
[1763126699494,0.01999998,94950.0,94933.0,0.21067399]
[1763126699702,0.01999998,94950.0,94932.0,0.02783]
[1763126699703,0.02999997,94950.0,94934.0,0.21067105]
[1763126699927,0.02999997,94950.0,94932.0,0.02783]
[1763126700132,0.04802,94949.0,94932.0,0.02783]
[1763126700368,0.02999997,94940.0,94932.0,0.00013667]
[1763126700793,0.02999997,94940.0,94933.0,0.002]
[1763126701001,0.02999997,94940.0,94890.0,0.01053851]
[1763126701002,0.02999997,94910.0,94872.0,0.09157]
[1763126701209,0.01999998,94900.0,94875.0,0.24418272]
[1763126701417,0.323,94899.0,94875.0,0.03338]
[1763126701649,0.60024394,94900.0,94875.0,0.03338]
[1763126701650,0.01999998,94900.0,94875.0,0.03338]
[1763126701868,0.57038066,94910.0,94890.0,0.57024397]
[1763126701869,0.00013669,94910.0,94890.0,0.57024397]
[1763126702069,0.00013669,94910.0,94909.0,0.02936]
[1763126702484,0.00013669,94910.0,94909.0,0.26116098]
[1763126702693,0.00013669,94910.0,94909.0,0.28727732]
[1763126702917,0.00013669,94910.0,94909.0,0.02936]
[1763126703351,0.00013669,94910.0,94895.0,0.09157]
[1763126703533,0.00013669,94910.0,94901.0,0.02936]
[1763126703989,0.00013669,94910.0,94881.0,0.323]
[1763126703990,0.00013669,94910.0,94909.0,0.001]
[1763126704225,0.01013669,94910.0,94909.0,0.001]
[1763126704456,0.323,94889.0,94860.0,0.01054185]
[1763126704662,0.323,94889.0,94857.0,30.81299634]
[1763126704881,0.323,94889.0,94861.0,0.02108348]
[1763126705087,0.323,94889.0,94862.0,0.09357]
[1763126705509,0.02999997,94890.0,94857.0,30.81299634]
[1763126705715,0.04979,94877.0,94857.0,30.81299634]
[1763126705913,0.04979,94885.0,94858.0,0.02108414]
[1763126706115,0.04979,94885.0,94858.0,0.23192351]
[1763126706321,0.4157,94884.0,94859.0,0.02108392]
[1763126706535,0.01,94880.0,94857.0,30.81299634]
[1763126707005,0.04979,94885.0,94869.0,0.21081683]
[1763126707209,0.001,94889.0,94877.0,0.02107992]
[1763126707419,0.001,94885.0,94877.0,0.02107992]
[1763126707619,0.02999997,94890.0,94877.0,0.02107992]
[1763126707735,0.02999997,94890.0,94879.0,0.21079402]
[1763126707943,0.37279,94899.0,94880.0,0.02107925]
[1763126708158,0.323,94899.0,94866.0,0.09357]
[1763126708376,0.02999997,94900.0,94870.0,0.01054073]
[1763126708574,0.02999997,94900.0,94876.0,0.22079972]
[1763126708782,0.02999997,94900.0,94881.0,0.21078856]
[1763126708991,0.00999999,94900.0,94882.0,0.07749736]
[1763126709203,0.02999997,94900.0,94882.0,0.03538]
[1763126709600,0.00999999,94900.0,94889.0,0.21077076]
[1763126709810,0.02999997,94900.0,94890.0,0.01598565]
[1763126710018,0.323,94919.0,94888.0,0.02107748]
[1763126710019,0.00999999,94910.0,94888.0,0.02107748]
[1763126710226,0.001,94900.0,94886.0,0.21077793]
[1763126710427,0.001,94900.0,94883.0,0.06857]
[1763126710428,0.002,94900.0,94893.0,0.21076162]
[1763126710641,0.001,94900.0,94893.0,0.21076162]
[1763126710861,0.001,94900.0,94899.0,0.21075037]
[1763126711062,0.001,94900.0,94887.0,0.03002676]
[1763126711266,0.03013669,94910.0,94882.0,0.01038]
[1763126711679,0.03013669,94910.0,94883.0,0.07416196]
[1763126712309,0.03013669,94910.0,94894.0,0.21075995]
[1763126712527,0.03013669,94910.0,94909.0,0.02936]
[1763126712528,0.00013672,94910.0,94909.0,0.02936]
[1763126712728,0.00013672,94910.0,94909.0,0.04994072]
[1763126712923,0.00013672,94910.0,94909.0,0.11864636]
[1763126713539,0.00013672,94910.0,94909.0,0.58986164]
[1763126713743,0.00013672,94910.0,94909.0,0.56878883]
[1763126714363,0.00013672,94910.0,94909.0,0.46499229]
[1763126714588,0.00013672,94910.0,94909.0,0.03036]
[1763126715708,0.0201367,94910.0,94885.0,0.06857]
[1763126715907,0.03013669,94910.0,94885.0,0.06857]
[1763126716123,0.00013672,94910.0,94909.0,0.001]
[1763126716541,0.00013672,94910.0,94909.0,0.01912914]
[1763126716754,0.00013672,94910.0,94901.0,0.02936]
[1763126716986,0.00013672,94910.0,94885.0,0.06957]
[1763126717193,0.01013671,94910.0,94888.0,0.21077327]
[1763126717413,0.01013671,94910.0,94909.0,0.21072817]
[1763126717414,0.00013672,94910.0,94909.0,0.21072817]
[1763126717622,0.00013672,94910.0,94908.0,0.21072875]
[1763126717835,0.00013672,94910.0,94900.0,0.03921]
[1763126718041,0.00013672,94910.0,94908.0,0.21072897]
[1763126718242,0.00013672,94910.0,94900.0,0.03921]
[1763126718243,0.00013672,94910.0,94907.0,0.2107304]
[1763126718464,0.00013672,94910.0,94901.0,0.21074494]
[1763126718685,0.00013672,94910.0,94899.0,0.2107486]
[1763126718893,0.00013672,94910.0,94886.0,0.24998819]
[1763126719105,0.03013669,94910.0,94885.0,0.03262817]
[1763126719333,0.02999997,94900.0,94876.0,0.01]
[1763126719540,0.41581,94909.0,94876.0,0.01]
[1763126719541,0.04917,94883.0,94876.0,0.01]
[1763126720154,0.02999997,94890.0,94876.0,0.01]
[1763126720155,0.03999997,94890.0,94876.0,0.01]
[1763126720568,0.02999997,94890.0,94877.0,0.21079751]
[1763126720771,0.02999997,94890.0,94876.0,0.01]
[1763126720984,0.001,94883.0,94876.0,0.01]
[1763126721185,0.03999997,94890.0,94876.0,0.01]
[1763126721899,0.02999997,94890.0,94876.0,0.01]
[1763126722140,0.02999997,94890.0,94878.0,0.21079565]
[1763126722345,0.02999997,94890.0,94879.0,0.02107948]
[1763126722555,0.02999997,94890.0,94876.0,0.01]
[1763126722961,0.03999997,94890.0,94876.0,0.01]
[1763126723391,0.08558097,94890.0,94876.0,0.01]
[1763126723627,0.04917,94877.0,94876.0,0.01]
[1763126724265,0.09281,94885.0,94876.0,0.01]
[1763126724266,0.04917,94885.0,94876.0,0.01]
[1763126724557,0.323,94889.0,94880.0,0.21079116]
[1763126724763,0.04917,94925.0,94880.0,0.21079116]
[1763126724764,0.02999997,94920.0,94890.0,0.01053851]
[1763126724991,0.01999998,94910.0,94908.0,0.21072994]
[1763126725225,0.04930669,94925.0,94909.0,0.02107281]
[1763126725226,0.00013669,94925.0,94909.0,0.02107281]
[1763126725474,0.00013669,94925.0,94891.0,0.03421]
[1763126725475,0.00013669,94925.0,94892.0,0.04341874]
[1763126725691,0.00013669,94925.0,94893.0,0.00881673]
[1763126725908,0.00013669,94925.0,94893.0,0.04302673]
[1763126726157,0.00013669,94925.0,94920.0,0.21070375]
[1763126726402,0.00013669,94925.0,94919.0,0.21070543]
[1763126726403,0.00013669,94925.0,94919.0,0.21070498]
[1763126726617,0.00013669,94925.0,94923.0,0.2106961]
[1763126726826,0.01999998,94970.0,94940.0,0.21065936]
[1763126727044,0.02999997,94980.0,94950.0,0.01053185]
[1763126727262,0.01999998,94970.0,94940.0,0.01053296]
[1763126727489,0.00027615,94951.0,94941.0,0.21065714]
[1763126727746,0.02999997,94970.0,94940.0,0.01053296]
[1763126727953,0.02999997,94970.0,94955.0,0.21062403]
[1763126728162,0.02999997,94970.0,94941.0,0.21846088]
[1763126728375,0.01999998,94960.0,94941.0,0.0078053]
[1763126728790,0.00013685,94960.0,94943.0,0.21065167]
[1763126729000,0.00013685,94960.0,94942.0,0.03383]